bitfinex/quotes_ETHUSD_20250215
["timestamp","ask_amount","ask_price","bid_price","bid_amount"]
[1739636496646,0.4224,2693.1,2692.7,3.71373]
[1739636497899,0.4224,2693.1,2692.4,3.55393325]
[1739636498051,3.71333,2693.0,2692.4,3.71415]
[1739636498380,0.4224,2693.1,2692.6,0.55]
[1739636498582,0.4224,2693.1,2692.7,3.71372]
[1739636498879,4.13559,2693.1,2692.6,0.55]
[1739636499066,0.4224,2693.1,2692.7,0.39198442]
[1739636499272,0.4224,2693.1,2692.7,4.10570442]
[1739636500186,0.4224,2693.1,2692.7,4.10563442]
[1739636500759,0.4224,2693.1,2692.7,0.39198442]
[1739636500956,0.04642011,2693.0,2692.6,0.55]
[1739636501286,3.71348,2692.9,2692.4,3.71413]
[1739636501471,0.4688236,2692.8,2692.4,3.71413]
[1739636501673,0.4224,2692.8,2692.4,3.71413]
[1739636501849,3.71389,2692.6,2692.1,9.1577]
[1739636502054,0.4224,2692.5,2692.1,8.333]
[1739636502480,3.71423,2692.4,2692.1,8.333]
[1739636503148,3.7606613,2692.4,2692.1,8.333]
[1739636504190,3.71423,2692.4,2692.1,8.333]
[1739636504391,0.4224,2692.5,2692.2,3.7144]
[1739636505286,0.4224,2692.9,2692.5,3.71397]
[1739636505766,0.4224,2692.9,2692.5,0.55]
[1739636506279,0.4224,2692.9,2692.6,3.71385]
[1739636506799,0.4224,2692.9,2692.5,4.26398]
[1739636507095,0.468822,2692.9,2692.5,0.55]
[1739636507485,0.4224,2692.9,2692.5,0.55]
[1739636508113,0.46882195,2692.9,2692.5,0.55]
[1739636508299,4.13589,2692.9,2692.4,7.26795325]
[1739636508503,4.13589,2692.9,2692.4,8.57634657]
[1739636509216,0.4224,2692.9,2692.4,8.57634657]
[1739636509419,0.4224,2692.9,2692.5,3.714]
[1739636510085,0.4224,2692.9,2692.4,8.57634657]
[1739636510417,4.13588,2692.9,2692.4,7.26795325]
[1739636511720,4.13588,2692.9,2692.4,3.71402]
[1739636511928,4.18230355,2692.9,2692.4,3.71402]
[1739636512087,4.13588,2692.9,2692.4,3.71402]
[1739636513513,4.13588,2692.9,2692.5,0.55]
[1739636514024,0.4224,2692.9,2692.6,3.71384]
[1739636515287,4.45320629,2693.1,2692.7,0.55]
[1739636515288,0.4224,2693.1,2692.7,0.55]
[1739636515481,0.4224,2693.1,2692.7,4.26366]
[1739636516630,0.4224,2693.1,2692.7,4.26362]
[1739636516789,6.02643273,2693.2,2692.9,0.55]
[1739636517125,6.02643273,2693.2,2692.9,1.38675333]
[1739636518822,6.02643273,2693.2,2692.9,5.10019333]
[1739636518984,5.28,2693.2,2692.9,5.10019333]
[1739636520236,5.28,2693.2,2693.0,3.71332]
[1739636520528,0.4224,2693.3,2693.0,3.71332]
[1739636521434,0.4224,2693.3,2693.0,4.59467833]
[1739636521584,0.005,2693.4,2693.2,3.71305]
[1739636521787,0.005,2693.4,2693.3,0.55]
[1739636522736,0.005,2693.4,2693.3,7.81684325]
[1739636523698,0.005,2693.4,2693.3,8.63334325]
[1739636523896,0.005,2693.4,2693.3,9.86797458]
[1739636526990,0.005,2693.4,2693.3,10.05539267]
[1739636529493,0.005,2693.4,2693.3,13.05539267]
[1739636536812,1e-05,2693.4,2693.3,13.05539267]
[1739636541352,1e-05,2693.4,2693.3,21.38539267]
[1739636541765,1e-05,2693.4,2693.3,22.13424474]
[1739636543343,0.4224,2694.8,2694.5,0.55]
[1739636543656,0.4224,2694.8,2694.5,4.26117]
[1739636544358,0.4224,2694.8,2694.5,3.7112]
[1739636545467,0.4224,2694.8,2694.7,0.55]
[1739636548202,0.4224,2694.8,2694.5,0.55]
[1739636548404,0.4224,2694.8,2694.5,4.26113]
[1739636550487,0.4224,2694.8,2694.5,7.42231]
[1739636550700,0.4224,2694.8,2694.6,0.55]
[1739636553336,0.4224,2694.8,2694.5,0.55]
[1739636553747,0.4224,2694.8,2694.5,4.26113]
[1739636555340,0.4224,2694.8,2694.2,3.55393325]
[1739636555528,4.13332,2694.8,2694.3,3.71151]
[1739636555731,4.13332,2694.8,2694.4,0.55]
[1739636556118,4.13339,2694.7,2694.4,0.55]
[1739636557005,3.71113,2694.6,2693.9,7.26593325]
[1739636557341,4.55117605,2694.5,2694.0,0.55]
[1739636557540,0.4224,2694.5,2694.0,0.55]
[1739636557705,0.4224,2694.5,2694.2,0.55]
[1739636558941,0.4224,2694.5,2694.1,3.71179]
[1739636559146,0.4224,2694.5,2694.2,0.55]
[1739636559448,0.4224,2694.5,2694.2,4.26161]
[1739636560845,0.4224,2694.5,2694.2,0.55]
[1739636563411,4.13371,2694.5,2694.2,0.55]
[1739636564923,0.4224,2694.5,2694.2,0.55]
[1739636571845,0.4224,2694.5,2694.4,0.55]
[1739636572048,0.4224,2694.8,2694.6,3.711]
[1739636572240,0.4224,2694.8,2694.6,0.55]
[1739636572620,0.4224,2694.8,2694.2,7.69170225]
[1739636572825,4.13328,2694.8,2694.3,3.71145]
[1739636573265,0.4224,2694.8,2694.4,3.71136]
[1739636573564,0.4224,2694.8,2694.4,7.42268]
[1739636573763,0.4224,2694.8,2694.4,3.71132]
[1739636575254,0.4224,2694.8,2694.5,3.71126]
[1739636576361,0.4224,2694.8,2694.6,4.26098]
[1739636577775,0.5681182,2695.0,2694.7,3.71098]
[1739636579575,0.5681182,2695.0,2694.8,3.71082]
[1739636580424,0.5681182,2695.0,2694.6,4.26101]
[1739636580628,0.5681182,2695.0,2694.7,3.71089]
[1739636580831,0.5681182,2695.0,2694.9,3.71071]
[1739636581468,0.1457182,2695.0,2694.9,5.002855]
[1739636582499,0.1457182,2695.0,2694.9,4.26071]
[1739636584220,0.1457182,2695.0,2694.9,5.08841]
[1739636584375,0.1457182,2695.0,2694.9,4.26071]
[1739636594192,0.1457182,2695.0,2694.9,8.59124325]
[1739636594193,8.2e-06,2695.0,2694.9,8.59124325]
[1739636594524,8.2e-06,2695.0,2694.9,8.03731]
[1739636594733,8.2e-06,2695.0,2694.9,9.56750833]
[1739636595240,8.2e-06,2695.0,2694.9,6.56750833]
[1739636595390,8.2e-06,2695.0,2694.9,5.79090833]
[1739636596734,8.2e-06,2695.0,2694.9,9.56750833]
[1739636599138,8.2e-06,2695.0,2694.9,6.56750833]
[1739636601136,8.2e-06,2695.0,2694.9,5.79090833]
[1739636604522,8.2e-06,2695.0,2694.9,3.71071]
[1739636605452,8.2e-06,2695.0,2694.9,4.26071]
[1739636611156,0.61090831,2695.4,2695.0,3.71052]
[1739636617068,0.37467118,2695.0,2694.5,3.71116]
[1739636617227,1.10225424,2695.0,2694.3,3.71142]
[1739636617841,1.10225424,2695.0,2694.5,3.71125]
[1739636619634,0.0463914,2694.9,2694.3,3.7115]
[1739636620223,0.0463914,2694.9,2694.1,0.55]
[1739636620424,1.10225424,2695.0,2694.5,3.71124]
[1739636620749,0.04639181,2694.9,2694.4,3.71131]
[1739636621763,0.04639181,2694.9,2694.5,3.71126]
[1739636621938,0.04639181,2694.9,2694.4,3.71136]
[1739636623026,1.10225424,2695.0,2694.4,3.71136]
[1739636623260,1.10225424,2695.0,2694.6,3.71109]
[1739636624249,1.10225424,2695.0,2694.5,3.71125]
[1739636624794,1.10225424,2695.0,2694.4,3.71131]
[1739636624991,1.10225424,2695.0,2694.4,7.42262]
[1739636625492,1.10225424,2695.0,2694.4,3.71131]
[1739636625779,1.0556624,2694.9,2694.4,3.71131]
[1739636626574,1.00927042,2694.9,2694.4,3.71131]
[1739636627476,1.00927042,2694.9,2694.4,7.42261]
[1739636627941,1.00927042,2694.9,2694.4,7.4226]
[1739636628880,1.00927042,2694.9,2694.4,3.7113]
[1739636629278,1.00927042,2694.9,2694.4,7.42262]
[1739636630092,1.00927042,2694.9,2694.4,7.42259]
[1739636630876,1.00927042,2694.9,2694.4,3.71129]
[1739636631247,1.00927042,2694.9,2694.4,7.42261]
[1739636631964,1.00927042,2694.9,2694.4,3.71129]
[1739636632688,1.05566228,2694.9,2694.4,3.71129]
[1739636632892,1.00927042,2694.9,2694.4,7.42261]
[1739636633287,1.00927042,2694.9,2694.4,3.71129]
[1739636633494,1.00927042,2694.9,2694.5,3.71118]
[1739636634670,1.00927042,2694.9,2694.6,3.71111]
[1739636635797,1.00927042,2694.9,2694.4,3.71126]
[1739636636003,1.10225424,2695.0,2694.4,3.71126]
[1739636636594,1.10225424,2695.0,2694.5,3.71118]
[1739636639013,1.10225424,2695.0,2694.6,3.71111]
[1739636640225,1.10225424,2695.0,2694.5,3.71118]
[1739636640433,5.28,2695.1,2694.9,3.71069]
[1739636640815,5.28,2695.1,2695.0,3.71057]
[1739636641134,8.4930498,2695.6,2695.1,3.7104]
[1739636641500,0.75855592,2695.5,2695.3,3.71013]
[1739636641699,8.4930498,2695.6,2695.3,3.71013]
[1739636642328,8.4930498,2695.6,2694.9,4.26065]
[1739636642680,8.4930498,2695.6,2695.4,3.70999]
[1739636642681,9.21729762,2695.6,2695.4,3.70999]
[1739636643008,6.00424782,2695.6,2695.4,3.70992]
[1739636646434,0.3716,2696.1,2695.6,3.70964]
[1739636646636,5.6516,2696.1,2695.6,3.70964]
[1739636646946,0.75682413,2695.8,2695.6,3.70964]
[1739636648044,5.28,2696.1,2695.6,3.70964]
[1739636648252,5.28,2696.1,2695.6,7.41931]
[1739636648402,5.28,2696.1,2695.6,3.70964]
[1739636649037,5.28,2696.1,2695.6,7.41931]
[1739636649235,5.28,2696.1,2695.6,3.70964]
[1739636649445,5.28,2696.1,2695.6,7.41931]
[1739636649938,5.28,2696.1,2695.6,3.70964]
[1739636650169,0.73970477,2696.0,2695.6,3.70964]
[1739636650644,5.28,2696.1,2695.7,3.70953]
[1739636651006,6.03847562,2696.1,2695.7,3.70953]
[1739636651611,6.03847562,2696.1,2695.6,3.70964]
[1739636651612,6.03847562,2696.1,2695.6,7.41927]
[1739636651825,6.03847562,2696.1,2695.6,3.70963]
[1739636652679,5.28,2696.1,2695.6,0.370963]
[1739636652825,5.28,2696.1,2695.9,3.70922]
[1739636653031,5.28,2696.1,2695.7,7.41903]
[1739636653245,0.04636996,2696.0,2695.7,3.70949]
[1739636653645,5.28,2696.1,2695.7,3.70949]
[1739636653858,5.28,2696.1,2695.7,7.41902]
[1739636654227,5.28,2696.1,2695.7,3.70949]
[1739636654430,5.28,2696.1,2695.8,3.70943]
[1739636654622,5.28,2696.1,2695.7,3.70949]
[1739636654947,5.32636914,2696.1,2695.7,7.41901]
[1739636655149,5.28,2696.1,2695.8,3.70947]
[1739636655445,5.28,2696.1,2695.7,3.70949]
[1739636655627,5.28,2696.1,2695.7,7.41902]
[1739636655953,5.28,2696.1,2695.8,3.70939]
[1739636657253,5.28,2696.1,2696.0,3.70919]
[1739636657837,5.28,2696.5,2696.1,3.70898]
[1739636658888,0.74754705,2696.4,2696.1,3.70898]
[1739636659290,0.74754705,2696.4,2696.2,3.7089]
[1739636660094,5.28,2696.5,2696.2,3.70882]
[1739636660292,5.28,2696.5,2696.3,3.70873]
[1739636661181,0.04636008,2696.4,2696.3,3.70873]
[1739636661355,5.28,2696.5,2696.1,3.70893]
[1739636662077,6.01026058,2696.5,2695.8,1.3277]
[1739636662288,5.28,2696.5,2696.2,3.70885]
[1739636662581,5.28,2696.5,2696.2,3.70892]
[1739636662743,5.28,2696.5,2696.0,3.7091]
[1739636662942,5.28,2697.2,2696.4,3.70861]
[1739636663144,8.548,2697.1,2696.4,3.70854]
[1739636663337,4.56271,2697.0,2696.4,3.70854]
[1739636663580,3.70797,2696.9,2696.4,3.70854]
[1739636663941,3.70797,2696.9,2696.3,3.70877]
[1739636664180,0.72862838,2696.6,2696.3,3.70877]
[1739636664983,0.72862838,2696.6,2696.4,3.70853]
[1739636665147,0.72862838,2696.6,2696.4,4.52803]
[1739636666254,0.72862838,2696.6,2696.5,3.70851]
[1739636666582,0.72862838,2696.6,2696.4,0.8195]
[1739636666778,0.72862838,2696.6,2696.4,3.70864]
[1739636666987,3.70811,2696.8,2696.2,4.48652]
[1739636667171,4.44373462,2696.7,2696.2,0.7777]
[1739636668082,4.4900948,2696.7,2696.2,0.7777]
[1739636668383,4.44373462,2696.7,2696.2,4.48661]
[1739636668581,0.73547462,2696.7,2696.3,3.70872]
[1739636668883,0.73547462,2696.7,2696.2,5.66155933]
[1739636669381,4.44374462,2696.7,2696.2,5.66155933]
[1739636669682,3.70837,2696.6,2696.2,0.7777]
[1739636669888,3.7547302,2696.6,2696.0,11.77649325]
[1739636670073,3.70851,2696.5,2696.0,8.06734325]
[1739636670285,3.70851,2696.5,2696.0,4.51341]
[1739636670992,3.70851,2696.5,2696.0,0.8043]
[1739636671900,3.70851,2696.5,2696.0,1.681597]
[1739636672080,3.70851,2696.5,2695.8,3.7094]
[1739636672288,3.70851,2696.5,2695.7,0.8043]
[1739636672289,3.70889,2696.3,2695.7,0.8043]
[1739636672466,3.70889,2696.3,2695.7,4.51388]
[1739636673284,3.70889,2696.3,2695.8,3.70946]
[1739636673603,7.41777,2696.3,2695.8,3.70946]
[1739636674100,3.70888,2696.3,2695.7,4.51389]
[1739636674286,3.70894,2696.2,2695.7,4.51389]
[1739636674483,3.70894,2696.2,2695.7,5.391246]
[1739636674702,3.70894,2696.2,2695.7,4.586946]
[1739636674875,3.75530787,2696.2,2695.7,4.586946]
[1739636675204,3.70894,2696.2,2695.7,0.877356]
[1739636675368,7.41775,2696.3,2695.7,4.586866]
[1739636675570,3.70887,2696.3,2695.7,5.391166]
[1739636676299,3.75530784,2696.2,2695.7,5.391166]
[1739636677373,3.70894,2696.2,2695.7,5.391166]
[1739636678112,0.04636777,2696.1,2695.7,5.391166]
[1739636678516,3.70894,2696.2,2695.7,5.391166]
[1739636679574,5.28,2696.6,2695.8,4.6194396]
[1739636679775,5.32636616,2696.6,2696.1,1.3543]
[1739636679986,3.70858,2696.5,2696.1,1.3543]
[1739636680327,3.70858,2696.5,2696.1,0.55]
[1739636680530,5.28,2696.6,2696.1,0.55]
[1739636680829,3.70853,2696.5,2696.1,0.55]
[1739636681034,3.75500159,2696.4,2696.0,0.55]
[1739636681627,3.70864,2696.4,2696.0,0.55]
[1739636682292,8.98845,2696.6,2696.0,1.427301]
[1739636682628,3.70851,2696.5,2696.0,4.25912]
[1739636682828,12.69691,2696.6,2696.0,4.25912]
[1739636683030,3.70856,2696.5,2696.0,4.25912]
[1739636683419,8.98845,2696.6,2696.0,0.55]
[1739636683619,3.75496157,2696.5,2696.0,0.55]
[1739636683822,3.75496157,2696.5,2696.0,1.427297]
[1739636684336,0.04636157,2696.5,2696.0,1.427297]
[1739636684545,3.70866,2696.4,2696.0,1.427297]
[1739636685235,3.70881,2696.3,2695.9,0.8043]
[1739636685608,3.70866,2696.4,2695.9,0.8043]
[1739636685807,3.70866,2696.4,2695.9,4.51355]
[1739636686435,3.70851,2696.5,2696.0,3.70915]
[1739636687327,3.70865,2696.4,2695.9,0.8043]
[1739636687863,3.7091,2696.1,2695.5,4.50145]
[1739636688036,3.70936,2695.9,2695.5,0.7917]
[1739636688241,3.7091,2696.1,2695.5,0.7917]
[1739636688423,3.70923,2696.0,2695.5,4.50155]
[1739636688745,3.70923,2696.0,2695.5,1.6855542]
[1739636688948,3.70923,2696.0,2695.5,5.3954042]
[1739636689470,5.28,2696.4,2695.5,5.3954042]
[1739636689621,5.28,2696.4,2695.5,1.6855542]
[1739636689824,3.7092,2696.0,2695.5,0.7917]
[1739636690254,3.7092,2696.0,2695.5,4.50158]
[1739636690465,3.7092,2696.0,2695.5,0.7917]
[1739636690764,3.7092,2696.0,2695.5,4.50157]
[1739636692434,3.7092,2696.0,2695.5,5.322739]
[1739636693956,3.673485,2696.0,2695.5,5.322739]
[1739636694160,0.72997844,2696.1,2695.5,5.322739]
[1739636694469,4.43907844,2696.1,2695.5,5.322669]
[1739636694672,0.72997844,2696.1,2695.7,3.7096]
[1739636694846,0.72997844,2696.1,2695.6,0.7917]
[1739636694847,4.43911844,2696.1,2695.6,0.7917]
[1739636695047,4.43911844,2696.1,2695.6,4.50142]
[1739636696781,8.9887,2696.4,2695.8,0.7917]
[1739636696931,3.7088,2696.3,2695.8,4.50106]
[1739636697346,8.9887,2696.4,2695.8,4.50106]
[1739636697549,9.71865732,2696.4,2695.8,4.50106]
[1739636697743,9.71865732,2696.4,2695.9,4.25925]
[1739636697948,6.00995732,2696.4,2695.9,1.426031]
[1739636698176,6.00995732,2696.4,2696.0,4.50087]
[1739636699450,4.43862732,2696.4,2696.0,0.7917]
[1739636700046,0.72995732,2696.4,2696.0,0.7917]
[1739636700235,0.72995732,2696.4,2696.0,4.50082]
[1739636700436,0.72995732,2696.4,2696.1,0.9636131]
[1739636701148,0.72995732,2696.4,2696.1,4.6726431]
[1739636701350,8.98819,2696.8,2696.2,3.70886]
[1739636701532,5.28,2696.8,2696.3,0.7976]
[1739636701738,0.75051009,2696.6,2696.5,0.7976]
[1739636701937,0.75051009,2696.6,2696.5,1.28775333]
[1739636702824,5.28,2696.8,2696.5,1.28775333]
[1739636703167,0.74090556,2696.7,2696.5,1.28775333]
[1739636703367,0.04635541,2696.6,2696.3,0.7976]
[1739636703586,3.70839,2696.6,2696.3,0.7976]
[1739636703985,3.70839,2696.6,2696.2,0.55]
[1739636704137,3.70887,2696.3,2696.0,0.7976]
[1739636704484,3.7091,2696.1,2695.7,0.7976]
[1739636704643,3.7091,2696.1,2695.5,3.70979]
[1739636704644,3.7091,2696.1,2695.5,4.50739]
[1739636704839,3.7091,2696.1,2695.5,9.03894]
[1739636705090,3.7091,2696.1,2695.6,4.25973]
[1739636705378,3.70934,2695.9,2695.5,0.7976]
[1739636705982,3.70934,2695.9,2695.3,4.50774]
[1739636706347,7.4188,2695.9,2695.3,4.50774]
[1739636706640,3.70951,2695.8,2695.3,0.7976]
[1739636707080,3.70951,2695.8,2695.1,8.96896628]
[1739636707285,3.70951,2695.8,2695.1,5.25862628]
[1739636708173,3.70963,2695.7,2695.1,5.25862628]
[1739636708373,3.70963,2695.7,2695.1,4.50793]
[1739636708574,0.04637749,2695.6,2695.1,6.57248633]
[1739636709148,0.04637749,2695.6,2695.1,0.7976]
[1739636709465,3.70988,2695.5,2695.1,0.7976]
[1739636709678,3.70976,2695.6,2695.1,0.7976]
[1739636712486,3.7099,2695.5,2695.1,0.7976]
[1739636713453,7.41991,2695.5,2695.1,0.7976]
[1739636713977,3.7099,2695.5,2695.1,0.7976]
[1739636714205,3.71017,2695.3,2695.1,0.7976]
[1739636714385,3.71017,2695.3,2694.6,0.7649]
[1739636714704,3.71046,2695.1,2694.6,4.47601]
[1739636716337,5.28,2695.4,2694.7,3.71086]
[1739636716617,3.71038,2695.2,2694.6,4.47602]
[1739636716979,3.71049,2695.1,2694.6,4.47602]
[1739636717620,3.71038,2695.2,2694.6,4.47602]
[1739636717924,7.42075,2695.2,2694.6,4.47602]
[1739636718213,3.71072,2694.9,2694.4,4.47622]
[1739636718417,3.71086,2694.8,2694.4,0.7649]
[1739636718986,0.04639123,2694.9,2694.4,4.47627]
[1739636719188,7.42127,2695.0,2694.4,4.47627]
[1739636719481,7.42124,2695.0,2694.4,5.350057]
[1739636719680,3.71058,2695.0,2694.4,5.350057]
[1739636719983,3.71058,2695.0,2694.4,5.349997]
[1739636720484,7.42127,2695.0,2694.4,5.349997]
[1739636720812,3.71058,2695.0,2694.4,5.349997]
[1739636721013,9.719508,2695.2,2694.4,5.349997]
[1739636721324,9.719508,2695.2,2694.6,3.71111]
[1739636721480,11.1189787,2695.2,2694.6,3.71111]
[1739636721676,14.8293887,2695.2,2694.6,3.71111]
[1739636721921,3.71044,2695.1,2694.6,3.71111]
[1739636722216,3.71063,2695.0,2694.5,3.71126]
[1739636722617,3.71075,2694.9,2694.4,1.638687]
[1739636722778,3.71075,2694.9,2694.4,5.350017]
[1739636723821,3.71044,2695.1,2694.6,3.71105]
[1739636724118,3.71044,2695.1,2694.5,3.71116]
[1739636724527,3.71069,2695.0,2694.4,5.350017]
[1739636725089,3.71044,2695.1,2694.4,5.350017]
[1739636725419,3.71073,2694.9,2694.4,5.350017]
[1739636727192,3.71044,2695.1,2694.4,1.638687]
[1739636727392,3.7107,2695.0,2694.4,5.350047]
[1739636727711,3.71079,2694.9,2694.4,5.350047]
[1739636728289,3.7107,2695.0,2694.4,5.350047]
[1739636729322,3.71066,2695.0,2694.5,3.71123]
[1739636729519,7.42136,2695.0,2694.5,3.71123]
[1739636729833,7.42131,2695.0,2694.5,3.71123]
[1739636730328,3.71071,2694.9,2694.5,3.71123]
[1739636730483,3.71065,2695.0,2694.5,3.71123]
[1739636730688,7.4085987,2695.2,2694.4,1.638687]
[1739636730890,3.71082,2694.9,2694.4,0.7649]
[1739636731133,3.71102,2694.7,2694.4,0.7649]
[1739636731291,3.71082,2694.9,2694.4,4.47623]
[1739636732087,3.71082,2694.9,2694.4,0.7649]
[1739636732288,3.71102,2694.7,2694.4,0.7649]
[1739636732605,4.453204,2694.7,2694.4,0.7649]
[1739636733342,0.04639362,2694.6,2694.4,0.7649]
[1739636733500,4.453204,2694.7,2694.4,0.7649]
[1739636734217,3.71106,2694.7,2694.4,0.7649]
[1739636734713,3.71075,2694.9,2694.5,3.71125]
[1739636734923,3.71075,2694.9,2694.6,0.7955]
[1739636735443,3.71066,2695.0,2694.6,0.7955]
[1739636736548,3.7105,2695.1,2694.6,4.50661]
[1739636736751,6.009128,2695.2,2694.7,5.082696]
[1739636736955,3.75690527,2695.1,2694.7,0.55]
[1739636737411,3.71052,2695.1,2694.7,0.55]
[1739636738235,3.71052,2695.1,2694.8,0.7955]
[1739636739249,0.04638527,2695.0,2694.8,0.7955]
[1739636739909,3.71052,2695.1,2694.8,0.7955]
[1739636740221,3.75690529,2695.1,2694.8,0.7955]
[1739636741452,6.009128,2695.2,2694.8,0.7955]
[1739636741659,6.009128,2695.2,2694.8,5.011994]
[1739636741815,5.28,2695.2,2694.9,3.71066]
[1739636742158,5.28,2695.2,2695.0,0.7955]
[1739636742336,3.71003,2695.4,2695.0,0.7955]
[1739636743222,7.42017,2695.4,2695.0,0.7955]
[1739636743418,8.98978,2695.6,2695.0,0.7955]
[1739636743622,5.28,2695.6,2695.3,0.7955]
[1739636744527,8.98977,2695.6,2695.3,0.7955]
[1739636745664,5.28,2695.6,2695.3,0.7955]
[1739636746306,5.28,2695.6,2695.3,4.50564]
[1739636747142,6.02806786,2695.7,2695.3,4.50564]
[1739636748361,9.73772786,2695.7,2695.3,0.7955]
[1739636748662,8.98966,2695.7,2695.3,0.7955]
[1739636748962,5.28,2695.7,2695.3,4.50566]
[1739636749710,5.28,2695.7,2695.3,0.7955]
[1739636749957,8.98968,2695.7,2695.3,0.7955]
[1739636751432,5.28,2695.7,2695.3,4.50557]
[1739636752053,8.98968,2695.7,2695.3,0.7955]
[1739636752249,9.9634251,2695.7,2695.3,0.7955]
[1739636752473,3.70989,2695.5,2695.1,0.7823]
[1739636753068,3.71002,2695.4,2695.1,0.7823]
[1739636753271,3.7103,2695.2,2694.9,0.7823]
[1739636753866,7.42023,2695.4,2694.9,0.7823]
[1739636754162,3.71009,2695.4,2694.9,4.49301]
[1739636756172,7.42023,2695.4,2694.9,4.49301]
[1739636756477,3.71009,2695.4,2694.9,4.49301]
[1739636756778,3.71009,2695.4,2694.9,5.313401]
[1739636757136,0.74444559,2695.3,2694.9,5.313401]
[1739636757446,0.74444559,2695.3,2695.0,3.71053]
[1739636757643,0.74444559,2695.3,2694.9,1.602691]
[1739636758171,0.74444559,2695.3,2694.9,5.313391]
[1739636759381,0.74444559,2695.3,2694.9,4.493]
[1739636759878,4.45460559,2695.3,2694.9,4.493]
[1739636760234,4.45460559,2695.3,2694.9,0.7823]
[1739636760433,3.71004,2695.4,2694.9,4.4929]
[1739636760631,3.7099,2695.5,2695.0,3.7105]
[1739636760932,3.7099,2695.5,2694.9,4.4929]
[1739636760933,3.71032,2695.2,2694.9,0.7823]
[1739636762279,8.17861029,2695.4,2694.9,1.231622]
[1739636762446,0.75843029,2695.4,2695.0,3.71056]
[1739636763047,4.46847029,2695.4,2694.9,4.942262]
[1739636763253,3.70983,2695.6,2695.0,3.7105]
[1739636763467,8.98961,2695.7,2695.2,3.71029]
[1739636763782,0.04637676,2695.6,2695.1,4.51433]
[1739636763983,0.04637676,2695.6,2695.2,0.56096116]
[1739636764191,12.69933,2695.7,2695.2,0.56096116]
[1739636764394,8.98961,2695.7,2695.2,4.27125116]
[1739636764693,3.70984,2695.6,2695.2,0.56096116]
[1739636765191,3.75629676,2695.5,2695.2,0.56096116]
[1739636765692,3.75629676,2695.5,2695.1,0.804]
[1739636765841,3.71023,2695.3,2694.9,0.804]
[1739636766262,3.71031,2695.2,2694.9,0.804]
[1739636767193,3.75683145,2695.1,2694.9,0.804]
[1739636768102,3.71058,2695.0,2694.6,0.7608]
[1739636768249,3.71069,2695.0,2694.6,0.7608]
[1739636769196,3.71051,2695.1,2694.6,0.7608]
[1739636769400,3.71072,2694.9,2694.6,0.7608]
[1739636772143,3.71048,2695.1,2694.6,0.7608]
[1739636772338,7.42105,2695.1,2694.6,0.7608]
[1739636772641,3.71073,2694.9,2694.6,0.7608]
[1739636772840,7.42157,2694.9,2694.6,0.7608]
[1739636773014,5.19171314,2694.9,2694.3,0.7608]
[1739636773339,3.71101,2694.7,2694.3,0.7608]
[1739636773537,7.42207,2694.7,2694.3,0.7608]
[1739636773690,3.75740373,2694.7,2694.3,0.7608]
[1739636773895,3.71101,2694.7,2694.3,0.7608]
[1739636774439,3.75740374,2694.7,2694.3,0.7608]
[1739636774608,3.7112,2694.6,2694.3,0.7608]
[1739636775099,3.75766374,2694.5,2694.3,0.7608]
[1739636775602,8.99127,2694.5,2694.0,0.8127]
[1739636775798,3.71174,2694.2,2694.0,0.8127]
[1739636776606,3.71181,2694.1,2694.0,0.8127]
[1739636776821,3.71181,2694.1,2693.6,0.8127]
[1739636777143,3.71196,2694.0,2693.6,1.99188832]
[1739636777300,3.71181,2694.1,2693.6,2.73161465]
[1739636777498,3.71197,2694.0,2693.6,2.73161465]
[1739636778130,3.71181,2694.1,2693.6,1.99188832]
[1739636778326,3.71181,2694.1,2693.6,0.8127]
[1739636779149,3.71193,2694.1,2693.6,0.8127]
[1739636779664,8.99193,2694.1,2693.6,0.8127]
[1739636779878,12.70387,2694.1,2693.6,0.8127]
[1739636780173,0.04640542,2694.0,2693.6,0.8127]
[1739636780385,3.75844542,2694.0,2693.6,0.8127]
[1739636781075,3.71211,2693.9,2693.6,0.8127]
[1739636781379,8.99193,2694.1,2693.6,0.8127]
[1739636781380,8.99189,2694.1,2693.6,0.8127]
[1739636781792,3.71205,2694.0,2693.6,0.8127]
[1739636783107,8.99189,2694.1,2693.6,0.8127]
[1739636783707,10.262241,2694.1,2693.6,0.8127]
[1739636785597,10.262161,2694.1,2693.6,4.52512]
[1739636785802,8.99181,2694.1,2693.6,4.52512]
[1739636786281,5.28,2694.1,2693.7,3.71236]
[1739636786487,5.28,2694.1,2693.8,0.8127]
[1739636786690,5.28,2694.1,2693.8,4.52479]
[1739636787416,5.28,2694.1,2693.9,3.712]
[1739636788216,3.71207,2694.0,2693.8,0.8127]
[1739636788384,3.71216,2693.9,2693.5,0.8127]
[1739636788783,3.71207,2694.0,2693.5,0.8127]
[1739636789000,3.71205,2694.0,2693.5,0.8127]
[1739636789398,3.71216,2693.9,2693.5,0.8127]
[1739636789915,3.71205,2694.0,2693.5,0.8127]
[1739636790209,5.28,2694.3,2693.6,0.8313]
[1739636790419,3.71169,2694.2,2693.7,3.71234]
[1739636790910,5.28,2694.3,2693.9,0.8313]
[1739636791622,5.28,2694.4,2694.0,0.8313]
[1739636793517,3.71154,2694.3,2694.0,0.8313]
[1739636793820,8.99143,2694.4,2694.0,0.8313]
[1739636793989,5.28,2694.4,2694.0,0.8313]
[1739636794521,5.28,2694.4,2694.0,1.285628]
[1739636794718,5.28,2694.4,2694.1,0.8313]
[1739636795811,8.99141,2694.4,2694.1,0.8313]
[1739636796393,5.28,2694.4,2694.1,0.8313]
[1739636797615,4.44272476,2694.5,2694.1,0.8313]